Cogmind - Beta 14 X2 @@@ ROGUE MODE // 2024.08.03 @ 02:45:13 Player: LU-1G1 Result: Destroyed by G9-PKF(R) with Subdweller Laser Performance ------------- Evolutions (0) 0 Regions Visited (3) 600 Robots Destroyed (22) 110 Value Destroyed (705) 705 Prototype IDs (0) 0 Alien Tech Used (0) 0 Bonus (0) 0 TOTAL SCORE: 1415 Bonus ------- None Cogmind --------- Core Integrity 0/250 Matter 300/300 Energy 265/265 System Corruption 0% Temperature Cool (6) Movement Rolling (125) Ox3 Location -10/Subcaves Parts ------- > --- POWER (1) -------- Improved Ion Engine > --- PROPULSION (2) --- Light Treads Wheel > --- UTILITY (2) ------ Scrap Shield > --- WEAPON (2) ------- Battle Rifle Subdweller Machine Gun > --- INVENTORY (5) ---- Seismic Detector Subdweller Beam Cannon Subdweller Shrapnel Launcher Mining Claw Peak State ------------ > --- POWER ------------ Improved Ion Engine > --- PROPULSION ------- Light Treads Light Treads > --- UTILITY ---------- Scrap Shield > --- WEAPON ----------- Subdweller Machine Gun Barrage Gun > --- INVENTORY -------- Seismic Detector Subdweller Beam Cannon Light Assault Rifle Subdweller Machine Gun Mining Claw [Rating: 13] Favorites ----------- Power Improved Ion Engine Engine Improved Ion Engine Propulsion Light Treads Treads Light Treads Wheel Wheel Utility Small Storage Unit Device Heat Sink Storage Small Storage Unit Protection Scrap Shield Weapon Light Assault Rifle Energy Gun Small Laser Ballistic Gun Light Assault Rifle Build | -11 -10 -10 -10 ------- Run | Yrd Mat Min Sub Slots Evolved . | . . . . Power . | . . . . Propulsion . | . . . . Utility . | . . . . Weapon . | . . . . Parts Attached 23 | 8 3 2 10 Power 2 | 1 . 1 . Engine 2 | 1 . 1 . Core . | . . . . Reactor . | . . . . Propulsion 4 | 2 . . 2 Treads 3 | 2 . . 1 Leg . | . . . . Wheel 1 | . . . 1 Hover . | . . . . Flight . | . . . . Utility 5 | 2 1 . 2 Device 2 | 1 1 . . Storage 1 | 1 . . . Processor . | . . . . Hackware . | . . . . Protection 2 | . . . 2 Artifact . | . . . . Weapon 12 | 3 2 1 6 Energy Gun 3 | 3 . . . Energy Cannon . | . . . . Ballistic Gun 9 | . 2 1 6 Ballistic Cannon . | . . . . Launcher . | . . . . Special Weapon . | . . . . Impact Weapon . | . . . . Slashing Weapon . | . . . . Piercing Weapon . | . . . . Special Melee Weapon . | . . . . Unidentified Prototypes . | . . . . Parts Lost 4 | . . . 4 Power . | . . . . Propulsion 2 | . . . 2 Utility . | . . . . Weapon 2 | . . . 2 Highest Loss Streak 1 | . . . 1 To Critical Strikes 1 | . . . 1 Average Slot Usage (%) 87 | . 100 89 82 Engine 14 | . 14 14 14 Treads 24 | . 28 28 21 Wheel 2 | . . . 4 Device 3 | . 14 3 . Storage 7 | . 14 14 3 Protection 6 | . . . 11 Energy Gun 4 | . 22 . . Ballistic Gun 23 | . 5 28 27 Naked Turns . | . . . . Heaviest Build 33 | 14 14 16 33 Greatest Support 40 | 40 40 40 40 Greatest Overweight (x) 3 | 1 . . 3 Average Overweight (x) . | . . . 1 Largest Inventory Capacity 8 | 8 8 8 8 Average Capacity 6 | 7 8 8 5 Most Carried 8 | 6 8 8 8 Average Carried 6 | 4 7 7 5 Final Capacity 8 | 8 8 8 5 Final Carried 8 | 6 8 8 4 Class Distribution -------------------- 55% | Mutant 44% | Scavenger-Mutant Dominant Class ---------------- Mutant | -10/Materials Mutant | -10/Mines Scavenger-Mutant | -10/Subcaves Resources | -11 -10 -10 -10 ----------- Run | Yrd Mat Min Sub Matter Collected 672 | 280 10 36 346 Remotely . | . . . . Salvage Created 853 | 118 247 . 488 Parts 52 | 6 12 . 34 Haulers Intercepted . | . . . . Recyclers Shooed 1 | . 1 . . Parts Field Recycled . | . . . . Retrieved Matter . | . . . . Parts Self-Destructed 2 | . . . 2 Prevented . | . . . . Kills | -11 -10 -10 -10 ------- Run | Yrd Mat Min Sub Combat Hostiles Destroyed 20 | . 8 . 12 Guns 20 | . 8 . 12 Classes Destroyed 7 | 2 2 . 3 Tunneler 1 | 1 . . . Recycler 1 | 1 . . . Swarmer 3 | . 3 . . Grunt 6 | . 5 . 1 Sentry 1 | . . . 1 Artisan 1 | . . . 1 Subdweller 10 | . . . 10 Best Kill Streak 5 | 2 5 . 2 Combat Bots Only 5 | . 5 . 2 Max Kills in Single Turn 1 | 1 1 . 1 Gunslinging . | . . . . Exploded . | . . . . Melee . | . . . . Uniques/NPCs Destroyed . | . . . . Combat | -11 -10 -10 -10 -------- Run | Yrd Mat Min Sub Hostile Shots Fired 93 | . 34 . 59 Missed 17 | . 8 . 9 Damage Taken 1320 | . 294 . 1026 Core 261 | . 100 . 161 Absorbed by Shields . | . . . . Core Remaining (%) 100 | 100 . . . Volleys Fired 79 | 5 23 . 51 Largest 2 | 2 2 . 2 Hottest 90 | 90 90 . 58 Shots Fired 156 | 10 46 . 100 Gun 156 | 10 46 . 100 Cannon . | . . . . Launcher . | . . . . Special . | . . . . Kinetic 106 | . 6 . 100 Thermal 50 | 10 40 . . Explosive . | . . . . Electromagnetic . | . . . . Robot Hit Streak 23 | 2 6 . 23 Robot Miss Streak 3 | 3 2 . 3 Penetration Max . | . . . . Secondary Targets 3 | . 2 . 1 Max Gunslinging Chain 1 | . 1 . 1 Shots Hit Robots 107 | 4 31 . 72 Core Hits 41 | 3 15 . 23 Critical Kills 2 | . . . 2 Critical Parts Destroyed . | . . . . Critical Strikes 5 | . 3 . 2 Burn 3 | . 3 . . Destroy 2 | . . . 2 Melee Attacks . | . . . . Impact . | . . . . Slashing . | . . . . Piercing . | . . . . Sneak Attacks . | . . . . Combat Hostiles . | . . . . Follow-up Attacks . | . . . . Damage Inflicted 1597 | 58 384 . 1155 Guns 1593 | 58 380 . 1155 Cannons . | . . . . Explosions . | . . . . Melee . | . . . . Ramming 4 | . 4 . . Kinetic 1191 | . 36 . 1155 Thermal 402 | 58 344 . . Explosive . | . . . . Electromagnetic . | . . . . Impact . | . . . . Slashing . | . . . . Piercing . | . . . . Highest Corruption . | . . . . Average Corruption . | . . . . Corruption Purged . | . . . . Corruption Blocked . | . . . . Overload Shots . | . . . . Overflow Damage . | . . . . Projectiles . | . . . . Explosions . | . . . . Melee . | . . . . Knockbacks . | . . . . Impact . | . . . . Kinetic . | . . . . Secondary . | . . . . Self-Inflicted Damage . | . . . . Shots . | . . . . Rammed 2 | . 2 . . Targets Rammed 2 | . 2 . . Kicked . | . . . . Crushed . | . . . . Highest Temperature 204 | 150 204 . 2 Average Temperature 70 | 78 69 . 2 Received Heat Transfer 351 | . 132 . 219 Siege Activations . | . . . . Robots Corrupted . | . . . . Combat Hostiles . | . . . . Parts Fried . | . . . . Impact Corruptions . | . . . . Robots Melted . | . . . . Combat Hostiles . | . . . . Parts Melted 8 | . 8 . . Heat Transferred 1275 | 149 1126 . . Parts Sabotaged . | . . . . Parts Stolen . | . . . . Parts Stripped . | . . . . Power Chain Reactions . | . . . . Alert | -11 -10 -10 -10 ------- Run | Yrd Mat Min Sub Peak Influence 246 | 10 246 95 . Initial 95 | . 6 95 . Average 77 | 3 82 92 . Maximum Alert Level 1 | . 1 . . Low Security (%) 89 | 100 75 100 . Level 1 10 | . 25 . . Level 2 . | . . . . Level 3 . | . . . . Level 4 . | . . . . Level 5 . | . . . . High Security . | . . . . Max Security . | . . . . Squads Dispatched 2 | . 2 . . Investigation 1 | . 1 . . Extermination . | . . . . Reinforcement 1 | . 1 . . Assault . | . . . . Garrison . | . . . . Intercept . | . . . . Searches Triggered . | . . . . Construction Impeded . | . . . . Haulers Reinforced . | . . . . Active Scanning Responses . | . . . . Cargo Convoy Interrupts . | . . . . Stealth | -11 -10 -10 -10 --------- Run | Yrd Mat Min Sub Distress Signals . | . . . . Communications Jammed . | . . . . Distress Signals . | . . . . Times Spotted 25 | . 11 1 13 Peak Tracking Total 5 | . 5 2 2 Tactical Retreats . | . . . . Traps | -11 -10 -10 -10 ------- Run | Yrd Mat Min Sub Traps Triggered 1 | . . . 1 Indirectly . | . . . . Trap Hack Attempts . | . . . . Triggered . | . . . . Disarmed . | . . . . Reprogrammed . | . . . . Reused . | . . . . Traps Extracted . | . . . . Installed . | . . . . Triggered 4 | . . . 4 Machines | -11 -10 -10 -10 ---------- Run | Yrd Mat Min Sub Machines Disabled . | . . . . Max in Single Turn . | . . . . Machines Repaired . | . . . . Machines Dismantled . | . . . . Machines Sabotaged . | . . . . Overloaded Fab Kills . | . . . . Hacking | -11 -10 -10 -10 --------- Run | Yrd Mat Min Sub Machines Accessed 3 | . 3 . . Terminals 3 | . 3 . . Fabricators . | . . . . Repair Stations . | . . . . Recycling Units . | . . . . Scanalyzers . | . . . . Garrison Access . | . . . . Total Hacks 9 | . 9 . . Successful 2 | . 2 . . Failed 7 | . 7 . . Catastrophic . | . . . . Database Lockouts . | . . . . Manual 6 | . 6 . . Terminals 9 | . 9 . . Fabricators . | . . . . Repair Stations . | . . . . Recycling Units . | . . . . Scanalyzers . | . . . . Garrison Access . | . . . . Terminal Hacks 2 | . 2 . . Robot Analysis 1 | . 1 . . Locate Traps 1 | . 1 . . Fabricator Hacks . | . . . . Repair Station Hacks . | . . . . Recycling Unit Hacks . | . . . . Scanalyzer . | . . . . Garrison Access Hacks . | . . . . Unauthorized Hacks . | . . . . Terminals . | . . . . Fabricators . | . . . . Repair Stations . | . . . . Recycling Units . | . . . . Scanalyzers . | . . . . Garrison Access . | . . . . Data Cores Recovered . | . . . . Used . | . . . . Hacking Detections 3 | . 3 . . Full Trace Events 1 | . 1 . . Feedback Events . | . . . . Feedback Blocked . | . . . . Robot Schematics Acquired . | . . . . Robots Built . | . . . . Authchips . | . . . . Time . | . . . . Total Robot Build Rating . | . . . . Part Schematics Acquired . | . . . . Parts Built . | . . . . Authchips . | . . . . Time . | . . . . Total Part Build Rating . | . . . . Parts Repaired . | . . . . Time . | . . . . Parts Recycled . | . . . . Recycled Matter . | . . . . Retrieved Matter . | . . . . Retrieved Components . | . . . . Parts Scanalyzed . | . . . . Part Schematics Acquired . | . . . . Parts Damaged . | . . . . Bothacking | -11 -10 -10 -10 ------------ Run | Yrd Mat Min Sub Used RIF Installer . | . . . . Robots Hacked . | . . . . Non-combat . | . . . . Combat . | . . . . Robot Hacks Applied . | . . . . Relay Couplers Released . | . . . . Fabnet Peak Effective % . | . . . . Robots Rewired . | . . . . Allies Hacked . | . . . . Hacks Repelled . | . . . . Allies | -11 -10 -10 -10 -------- Run | Yrd Mat Min Sub Total Allies . | . . . . Largest Group . | . . . . Highest-Rated Group . | . . . . Highest-Rated Ally . | . . . . Total Orders . | . . . . Ally Attacks . | . . . . Total Damage . | . . . . Kills . | . . . . Allies Corrupted . | . . . . Allies Melted . | . . . . Intel | -11 -10 -10 -10 ------- Run | Yrd Mat Min Sub Robot Analysis Total 1 | . 1 . . Derelict Logs Recovered . | . . . . Drone Launches . | . . . . Drone Recoveries . | . . . . Exploration | -11 -10 -10 -10 ------------- Run | Yrd Mat Min Sub Turns Passed 1989 | 110 380 409 1090 Spaces Moved 928 | 53 180 116 579 Core 8 | 8 . . . Treads 720 | 45 180 116 379 Legs . | . . . . Wheels 200 | . . . 200 Hover . | . . . . Flight . | . . . . Fastest Speed 50 | 50 160 160 125 Average Speed 157 | 148 160 160 156 Slowest Speed 240 | 160 160 160 240 Overloaded Moves . | . . . . Propulsion Burnouts . | . . . . Robots Hopped . | . . . . Cave-ins Triggered . | . . . . Exploration Rate (%) 25 | 4 38 23 36 Regions Visited 3 Branch Regions 2 Pre-discovered Areas . | . . . . Known Exits Taken . | . . . . Unknown Exits Taken 3 | 1 1 1 . Scrap Searched 11 | . . 1 10 Spaces Dug . | . . . . Terrain Destroyed . | . . . . Melee . | . . . . Projectile . | . . . . AOE . | . . . . Terrain Rammed . | . . . . Walls Destroyed . | . . . . Machines Disabled . | . . . . Actions | -11 -10 -10 -10 --------- Run | Yrd Mat Min Sub Total 1312 | 71 226 344 671 Wait 240 | . 15 214 11 Move 925 | 52 179 115 579 Hop . | . . . . Pick Up 15 | 5 1 5 4 Fast Attach 13 | 8 3 . 2 Attach 4 | . . . 4 Detach 2 | 1 1 . . Swap 6 | . . 2 4 Drop 20 | . 2 8 10 Fire 79 | 5 23 . 51 Melee . | . . . . Ram . | . . . . Kick . | . . . . Crush 2 | . 2 . . Escape Stasis . | . . . . Rewire . | . . . . Trap . | . . . . Miscellaneous 6 | . . . 6 Route ------- -11/Scrapyard -10/Materials (discovered 2 exits: [*Mat] / [*Min]) -10/Mines (discovered 2 exits: [Mat] / [*Sub]) -10/Subcaves History --------- Turn | Location | Event 27 | -11/Scrapyard | Discovered new exit (range 15) 111 | -11/Scrapyard | Entered Materials 248 | -10/Materials | Discovered new exit (range 4) 302 | -10/Materials | Build established: Mutant 430 | -10/Materials | Discovered new exit (range 14) 491 | -10/Materials | Entered Mines 491 | -10/Mines | Discovered new exit (range 15) 544 | -10/Mines | Deemed a non-threat by the Exiles lab entrance 600 | -10/Mines | Joined a pair of Derelicts in attacking an 0b10 outpost 889 | -10/Mines | Discovered new exit (range 6) 900 | -10/Mines | Entered Subcaves 926 | -10/Subcaves | Disturbed a concealed Subdweller 1087 | -10/Subcaves | Core integrity fell below 50% 1410 | -10/Subcaves | Build established: Scavenger-Mutant 1741 | -10/Subcaves | Ambushed by Subdwellers from Twisted Machinery 1743 | -10/Subcaves | Core integrity fell below 20% 1833 | -10/Subcaves | Shifting Twisted Machinery released Mak. Light Armor Plating 1834 | -10/Subcaves | Shifting Twisted Machinery released Sub. Machine Gun 1989 | -10/Subcaves | Disturbed a concealed Subdweller 1990 | -10/Subcaves | Destroyed by G9-PKF(R) with Subdweller Laser Last Messages --------------- 01759_ Acquired 39 matter. 01762_ Scrap Shield Fragment affixed to Scrap Shield (+46). 01764_ Scrap Shield Fragment affixed to Scrap Shield (+49). 01766_ Scrap Shield Fragment affixed to Scrap Shield (+15). Mak. Light Armor Plating falls loose from the Twisted Machinery. Sub. Machine Gun falls loose from the Twisted Machinery. 01847_ Dropped Sub. Machine Gun. 01919_ NX-IYI(R) destroyed. 01926_ DD-L2L(R) affixes Scrap Shield Fragment to Scrap Shield. 01929_ Barrage Gun destroyed. 01934_ DD-L2L(R) destroyed. 01937_ Acquired 28 matter. 01938_ Acquired 45 matter. 01941_ Scrap Shield Fragment affixed to Scrap Shield (+46). 01976_ G-34 Mercenary destroyed. 01983_ Y-45 Defender destroyed. 01986_ Acquired 20 matter. 01989_ G9-PKF(R) angrily emerges from the Twisted Machinery. 01990_ G9-PKF(R): "RAGEQUIT!" 01990_ Heat Sink fries itself beyond repair. Map ----- +----------------------------------------------------+ | ?????????????????????????????????????????????????? | | ?????????????????????????????????????????????????? | | ?????????????????????????????????????????????????? | | ?????????????????????????????????????????????????? | | ?????????????????????????????????????????????????? | | ?????????????????????????????????????????????????? | | ?????????????????????????????????????????????????? | | ?????????????????????????????????????????????????? | | ?????????????????????????????????????????????????? | | ?????????????????????????????????????????????????? | | ?????????????????????????????????????????????????? | | ?????????????????????????????????????????????????? | | ?????????????????????????????????????????????????? | | ?????????????????????????????????????????????????? | | ???????????????????????????##????????????????????? | | ??????????????????????????#$?????????????????????? | | ??????????????????????????$ ?????????????????????? | | ??????????????????????????&